bitfinex/quotes_ETHUSD_20260304
["timestamp","ask_amount","ask_price","bid_price","bid_amount"]
[1772634702645,0.5872167,2100.8,2099.1,4.63490994]
[1772634702844,1.42711194,2102.2,2098.8,1.631]
[1772634702845,1.42690643,2102.5,2100.1,4.63490994]
[1772634703128,1.18911719,2102.6,2100.9,4.63490994]
[1772634703329,4.70023206,2103.3,2100.2,6.16247268]
[1772634703330,1.58807788,2103.7,2101.1,4.63490994]
[1772634703530,0.1619966,2103.7,2102.1,3.81544115]
[1772634703743,4.75511174,2103.4,2102.6,0.24827013]
[1772634704059,4.75511174,2103.4,2101.2,2.14207514]
[1772634704060,4.75511174,2103.4,2101.5,4.63490994]
[1772634704358,4.75511174,2103.4,2101.0,1.633]
[1772634704359,4.70023206,2103.3,2101.0,1.633]
[1772634704544,4.70023206,2103.3,2100.5,1.42814788]
[1772634704545,4.70023206,2103.0,2100.4,0.21502099]
[1772634705054,4.70023206,2103.0,2100.6,0.21502099]
[1772634705256,4.70023206,2103.0,2100.6,4.84993093]
[1772634705424,4.75511174,2103.4,2100.6,4.84993093]
[1772634705425,1.18855186,2103.4,2100.6,4.84993093]
[1772634705632,4.70023206,2103.3,2100.9,0.14948499]
[1772634705841,4.70023206,2103.3,2100.9,0.21502099]
[1772634706026,1.18855186,2103.4,2101.1,4.70044594]
[1772634706229,9.45340702,2103.9,2101.3,4.63490994]
[1772634706230,4.70023206,2103.9,2101.3,4.63490994]
[1772634706447,4.70023206,2103.9,2101.4,1.636]
[1772634706448,4.70023206,2103.7,2101.4,1.636]
[1772634706649,4.70023206,2103.7,2101.1,0.065536]
[1772634706853,4.70023206,2103.7,2101.2,0.14948499]
[1772634707053,4.70023206,2103.7,2101.3,1.638]
[1772634707557,4.70023206,2103.7,2100.5,2.85689148]
[1772634707558,4.70023206,2102.8,2100.4,1.638]
[1772634707728,4.70023206,2102.6,2100.4,2.82821045]
[1772634707933,5.88926918,2102.6,2100.4,7.8068878]
[1772634708130,5.8889142,2103.2,2100.6,4.78439493]
[1772634708385,5.8889142,2103.2,2100.4,2.82821045]
[1772634708386,5.88889983,2103.2,2101.0,0.21502099]
[1772634708560,5.88889983,2103.2,2100.9,4.63490994]
[1772634708730,7.41403687,2103.8,2100.4,2.82821045]
[1772634708731,1.18841791,2103.7,2100.8,4.9532113]
[1772634709065,0.005,2104.0,2101.6,4.8876753]
[1772634709266,0.005,2104.0,2102.6,0.14948499]
[1772634709560,0.005,2104.0,2102.6,1.641]
[1772634709864,1.19322211,2104.0,2101.8,4.73819031]
[1772634710063,1.19322211,2104.0,2101.9,1.18940006]
[1772634710064,0.005,2104.0,2101.9,1.18940006]
[1772634710268,5.0142983,2104.0,2101.9,1.17196991]
[1772634710563,5.0142983,2104.0,2101.4,1.18968306]
[1772634710564,5.0092983,2103.9,2101.4,1.18968306]
[1772634710751,5.0092983,2103.5,2101.4,1.18968306]
[1772634710951,6.9292983,2103.5,2101.4,1.18968306]
[1772634711152,5.0092983,2103.5,2101.4,1.18968306]
[1772634711344,2.50836909,2103.7,2101.5,4.73819031]
[1772634711550,2.50836909,2103.7,2101.6,0.14948499]
[1772634711757,2.50836909,2103.7,2101.5,4.73819031]
[1772634711967,2.50836909,2103.7,2100.6,1.42775698]
[1772634711968,5.0092983,2103.5,2100.9,6.38219031]
[1772634712178,1.18860837,2103.3,2101.3,0.34376741]
[1772634712340,2.50836909,2103.7,2101.0,4.73819031]
[1772634712540,1.1882694,2103.9,2102.0,4.73819031]
[1772634712864,1.1882694,2103.9,2102.2,4.73819031]
[1772634713043,1.19323845,2104.0,2102.2,4.73819031]
[1772634713364,1.19323845,2104.0,2101.6,4.73519031]
[1772634713365,6.20253675,2104.0,2101.6,4.73519031]
[1772634713585,5.0092983,2103.8,2101.6,4.73519031]
[1772634713764,7.25181129,2103.5,2101.4,1.646]
[1772634714065,7.25181129,2103.5,2101.0,4.73819031]
[1772634714066,5.0092983,2103.4,2101.0,4.73819031]
[1772634714273,8.12390667,2103.3,2101.4,1.5542496]
[1772634714456,8.12390667,2103.3,2101.4,1.18964886]
[1772634714676,8.12390667,2103.3,2101.3,1.18973968]
[1772634714677,5.0092983,2103.0,2101.3,1.18973968]
[1772634714969,5.0092983,2103.0,2100.5,4.56764406]
[1772634714970,5.0092983,2102.2,2099.8,7.33726707]
[1772634715173,0.14948499,2103.2,2099.9,4.76201277]
[1772634715174,7.25181129,2101.9,2099.9,4.76201277]
[1772634715343,6.9372983,2101.8,2099.4,1.19081642]
[1772634715540,5.0092983,2101.7,2099.4,5.92900673]
[1772634715850,7.25181129,2100.7,2098.5,4.76526565]
[1772634716055,7.25181129,2100.7,2098.0,1.19155426]
[1772634716056,5.0092983,2100.2,2098.0,1.19155426]
[1772634716263,5.0092983,2100.2,2097.7,1.19178147]
[1772634716264,5.0092983,2099.8,2097.7,1.19178147]
[1772634716449,4.17151299,2099.7,2097.7,1.19178147]
[1772634716651,5.0092983,2099.7,2097.7,1.19178147]
[1772634717962,4.75088208,2099.9,2097.1,1.19212245]
[1772634717963,7.25181129,2099.1,2097.1,1.19212245]
[1772634718273,7.25181129,2099.1,2096.8,1.19229301]
[1772634718274,1.1911001,2098.9,2096.8,1.19229301]
[1772634718485,1.1911001,2098.9,2095.8,1.19286191]
[1772634718486,2.24251299,2098.3,2095.8,1.19286191]
[1772634718666,5.0092983,2098.2,2095.8,1.19286191]
[1772634718845,5.0092983,2098.2,2095.8,5.93105222]
[1772634719045,4.76298221,2099.6,2095.9,4.73819031]
[1772634719275,4.76298221,2099.6,2095.8,1.19286191]
[1772634719276,5.0092983,2099.5,2096.4,0.065536]
[1772634719463,5.0092983,2099.5,2096.7,4.73819031]
[1772634719775,6.9432983,2099.4,2096.9,0.065536]
[1772634719988,5.0092983,2099.3,2096.8,4.73819031]
[1772634720163,6.20022817,2099.2,2096.9,1.19223615]
[1772634720492,5.0092983,2099.0,2096.8,1.19226485]
[1772634720650,1.19036282,2100.2,2097.7,4.73819031]
[1772634720846,6.69526792,2100.8,2097.9,4.8876753]
[1772634721088,1.19220531,2100.5,2098.5,0.14948499]
[1772634721250,1.19220531,2100.5,2098.4,0.21502099]
[1772634721445,0.002,2100.5,2098.4,5.25591204]
[1772634721687,4.75832654,2101.6,2098.4,5.25591204]
[1772634721688,2.50836909,2101.9,2100.6,0.002]
[1772634721857,5.0092983,2103.0,2100.6,4.8876753]
[1772634722056,5.0092983,2103.4,2100.6,4.9532113]
[1772634722275,1.18866489,2103.2,2100.8,0.14948499]
[1772634722446,5.0092983,2103.0,2100.7,1.19007949]
[1772634722646,5.0092983,2103.0,2100.8,0.14948499]
[1772634722882,1.18843886,2103.6,2100.9,4.73819031]
[1772634723082,5.0142983,2104.0,2101.7,4.8876753]
[1772634723414,2.50836909,2103.9,2101.8,0.21502099]
[1772634723547,1.19321902,2104.0,2101.8,0.21502099]
[1772634723744,1.19321549,2104.0,2102.0,4.9532113]
[1772634723941,0.005,2104.0,2102.0,4.9532113]
[1772634724145,0.005,2104.0,2102.2,0.065536]
[1772634724346,0.005,2104.0,2102.1,1.1892869]
[1772634724561,2.24251299,2103.8,2101.6,1.18956985]
[1772634724744,0.005,2104.0,2101.7,4.80372631]
[1772634725062,1e-08,2104.0,2102.6,4.80372631]
[1772634725358,6.21137387,2104.8,2102.2,7.37838368]
[1772634725570,2.24251299,2104.5,2102.2,7.37838368]
[1772634725756,2.24251299,2104.5,2102.4,0.065536]
[1772634726078,0.01428354,2104.8,2102.4,4.9532113]
[1772634726281,7.29181129,2105.5,2102.8,4.73819031]
[1772634726282,2.24251299,2105.4,2102.8,4.73819031]
[1772634726459,1.22737365,2105.5,2102.9,4.80372631]
[1772634726660,1.22737365,2105.5,2103.2,4.9532113]
[1772634726863,1.22737429,2105.5,2103.2,4.9532113]
[1772634727054,0.04,2105.5,2103.2,4.9532113]
[1772634727270,1.22737283,2105.5,2103.2,4.9532113]
[1772634727469,0.70333588,2106.5,2103.6,4.73819031]
[1772634727754,0.70333588,2106.5,2104.6,4.8876753]
[1772634727958,1.58536321,2107.8,2104.9,4.73819031]
[1772634727959,1.34812365,2107.8,2104.9,4.73819031]
[1772634728159,1.34812365,2107.8,2104.7,0.065536]
[1772634728160,1.34808222,2107.8,2106.6,1.89901077]
[1772634728398,1.34808222,2107.8,2106.5,0.24769825]
[1772634728399,1.30061696,2107.8,2106.5,0.24769825]
[1772634728687,1.30061696,2107.8,2106.6,0.14948499]
[1772634728887,1.30061696,2107.8,2106.5,0.24769825]
[1772634729186,1.30061696,2107.8,2105.7,4.73819031]
[1772634729388,1.30061696,2107.8,2105.0,4.73819031]
[1772634729389,2.24251299,2107.5,2105.0,4.73819031]
[1772634729595,5.0092983,2107.7,2104.5,1.18791204]
[1772634729596,5.0092983,2106.6,2104.5,1.18791204]
[1772634729770,2.24251299,2106.3,2104.5,1.18791204]
[1772634730083,5.0748343,2106.6,2104.5,1.18791204]
[1772634730084,2.24251299,2106.2,2104.5,1.18791204]
[1772634730288,6.9532983,2106.6,2104.1,4.73819031]
[1772634730289,6.19607874,2106.6,2104.1,4.73819031]
[1772634730687,1.18652112,2107.0,2104.2,4.80372631]
[1772634730887,1.18652112,2107.0,2104.3,0.14948499]
[1772634731187,0.74204227,2108.4,2104.9,4.80372631]
[1772634731188,0.11453134,2107.8,2104.9,4.80372631]
[1772634731357,1.30061882,2107.8,2105.7,0.14948499]
[1772634731561,1.30061882,2107.8,2105.0,1.655]
[1772634731562,2.24251299,2107.6,2105.0,1.655]
[1772634731773,1.30061882,2107.8,2105.0,1.655]
[1772634731774,2.24251299,2107.2,2105.0,1.655]
[1772634731975,2.24251299,2106.8,2105.0,1.655]
[1772634732177,5.0092983,2107.4,2105.0,1.655]
[1772634732393,1.1863522,2107.3,2105.2,0.14948499]
[1772634732579,2.24251299,2107.2,2105.1,1.18759203]
[1772634732789,9.75470711,2107.4,2105.2,0.21502099]
[1772634732790,5.0092983,2107.4,2105.2,0.21502099]
[1772634732962,5.0092983,2107.4,2104.8,9.48855846]
[1772634732963,2.24251299,2106.9,2103.7,3.08404569]
[1772634733163,2.24251299,2106.9,2103.9,5.92640323]
[1772634733164,2.24251299,2106.1,2103.9,5.92640323]
[1772634733392,2.24251299,2105.7,2103.8,1.18832588]
[1772634733593,2.24251299,2105.3,2103.8,1.18832588]
[1772634733767,2.24251299,2105.3,2103.3,1.18860837]
[1772634734163,5.0092983,2105.8,2103.3,1.18860837]
[1772634734381,1.18725364,2105.7,2103.3,1.18860837]
[1772634734698,3.10299074,2105.2,2103.3,1.18860837]
[1772634735027,1.95,2105.1,2103.3,1.18860837]
[1772634735399,3.10299074,2104.8,2102.5,1.18906064]
[1772634735703,5.0092983,2104.7,2102.5,1.18906064]
[1772634736288,5.0092983,2104.7,2102.3,4.75624256]
[1772634736289,3.13887418,2104.6,2102.3,4.75624256]
[1772634736486,3.13887418,2104.6,2102.2,4.75624256]
[1772634736487,5.0092983,2104.5,2102.2,4.75624256]
[1772634736686,1.952,2104.4,2102.2,4.75624256]
[1772634736892,3.10299074,2103.8,2102.1,1.42713134]
[1772634737247,3.10299074,2103.8,2102.0,4.75624256]
[1772634737248,5.0092983,2103.7,2101.7,1.18951325]
[1772634737515,3.10299074,2103.4,2101.7,1.18951325]
[1772634737716,5.0092983,2103.7,2101.7,1.18951325]
[1772634737917,2.50836909,2103.9,2101.7,1.18951325]
[1772634738082,1.18787418,2104.6,2102.0,0.14948499]
[1772634738283,7.51766739,2105.1,2102.4,0.14948499]
[1772634738284,1.18765383,2105.0,2102.4,0.14948499]
[1772634738485,1.18765383,2105.0,2102.3,5.08839324]
[1772634738486,4.29064457,2105.0,2102.3,5.08839324]
[1772634738718,8.70527852,2105.1,2102.6,0.21502099]
[1772634738886,11.80826926,2105.1,2102.6,0.065536]
[1772634739092,11.80826926,2105.1,2102.7,0.14948499]
[1772634739093,8.70527852,2105.1,2102.7,0.14948499]
[1772634739300,4.75036815,2105.2,2102.7,0.14948499]
[1772634739301,5.24553978,2105.8,2103.2,5.02285724]
[1772634739504,4.74591995,2107.1,2104.3,0.065536]
[1772634739718,4.74591995,2107.1,2104.6,0.14948499]
[1772634739903,4.74591995,2107.1,2104.5,0.065536]
[1772634740108,3.10299074,2106.9,2104.5,0.065536]
[1772634740321,3.10299074,2106.9,2104.5,1.18793062]
[1772634740322,6.43217353,2106.8,2104.5,1.18793062]
[1772634740491,1.1864085,2107.2,2104.9,5.02285724]
[1772634740690,1.18618333,2107.6,2105.2,5.23787823]
[1772634740936,3.10299074,2107.5,2105.2,6.69085724]
[1772634741117,3.10299074,2107.1,2104.5,6.21078786]
[1772634741289,3.10299074,2106.7,2104.5,6.21078786]
[1772634741702,3.10299074,2106.3,2104.4,1.18795199]
[1772634741903,3.10299074,2106.8,2104.4,1.18795199]
[1772634742102,3.10299074,2106.4,2104.4,1.18795199]
[1772634742311,3.10299074,2106.4,2104.1,0.34309957]
[1772634742312,1.18691544,2106.3,2104.1,0.34309957]
[1772634742512,1.18691544,2106.3,2104.2,0.065536]
[1772634742712,1.18657743,2107.0,2104.5,4.9372349]
[1772634742897,1.18657743,2107.0,2104.7,0.14948499]
[1772634743102,1.18657743,2107.0,2104.6,1.735536]
[1772634743403,1.959,2106.9,2104.6,1.735536]
[1772634743606,1.18623962,2107.5,2105.2,0.21502099]
[1772634743926,1.18623962,2107.5,2105.2,5.0027709]
[1772634744118,1.18623962,2107.5,2105.2,4.9372349]
[1772634744314,4.74495848,2107.6,2105.4,1.18742281]
[1772634744730,4.7446733,2107.7,2105.5,5.49535546]
[1772634744924,1.30061309,2107.8,2105.5,5.15225589]
[1772634745119,1.30061309,2107.8,2105.5,5.0027709]
[1772634745315,1.30061309,2107.8,2105.5,4.9372349]
[1772634745519,3.10299074,2107.6,2105.5,4.9372349]
[1772634745835,1.30061309,2107.8,2105.4,1.18742281]
[1772634746132,2.16495389,2108.4,2105.4,1.18742281]
[1772634746133,0.74204227,2108.4,2105.8,4.9372349]
[1772634746302,0.00729877,2109.5,2107.0,6.12375602]
[1772634746502,0.00729877,2109.5,2107.5,0.065536]
[1772634746724,1.19242412,2109.5,2107.6,5.28033447]
[1772634746925,1.19242412,2109.5,2107.6,4.9372349]
[1772634747232,1.96542924,2110.3,2108.2,4.9372349]
[1772634747421,0.78074866,2110.3,2108.6,4.9372349]
[1772634747732,1.96541887,2110.3,2108.7,0.44304187]
[1772634747931,5.06840961,2110.3,2108.3,1.675]
[1772634748118,3.10299074,2109.8,2107.4,6.6132349]
[1772634748320,1.18477797,2110.1,2107.8,1.18607078]
[1772634748719,4.28776871,2110.1,2107.6,4.9372349]
[1772634748934,3.10299074,2109.6,2107.6,4.9372349]
[1772634749236,3.10299074,2109.5,2107.0,2.86248472]
[1772634749398,3.10299074,2109.1,2107.0,1.676]
[1772634749600,0.065536,2110.0,2107.1,4.9372349]
[1772634749897,6.38087863,2110.1,2107.6,5.15225589]
[1772634749898,1.18477797,2110.1,2107.6,5.15225589]
[1772634750111,1.18477797,2110.1,2108.0,0.14948499]
[1772634750331,1.18477797,2110.1,2108.1,1.678]
[1772634750522,1.18477797,2110.1,2107.3,4.7453458]
[1772634750523,3.10299074,2109.8,2107.3,2.8642959]
[1772634750831,0.065536,2109.7,2107.3,1.678]
[1772634751009,5.19610066,2109.2,2106.6,1.18674641]
[1772634751206,5.19610066,2109.2,2106.7,0.36401624]
[1772634751510,7.15810066,2109.2,2106.8,0.065536]
[1772634751716,1.962,2109.1,2106.6,1.18674641]
[1772634751914,5.19610066,2109.2,2106.6,1.18674641]
[1772634752113,1.963,2109.1,2106.6,6.12398131]
[1772634752315,1.963,2109.1,2106.4,4.81252166]
[1772634752316,5.19610066,2108.8,2106.2,6.42666177]
[1772634752516,3.10299074,2108.3,2106.2,1.18693726]
[1772634752728,3.10299074,2108.3,2105.7,4.24301222]
[1772634752729,5.19610066,2107.7,2105.7,2.86821932]
[1772634752932,5.19610066,2107.7,2105.7,1.681]
[1772634753130,5.19610066,2107.7,2105.7,2.86824658]
[1772634753335,3.10299074,2107.4,2105.3,1.18747921]
[1772634753702,3.10299074,2107.3,2105.3,1.18747921]
[1772634753904,5.19610066,2107.5,2105.3,1.18747921]
[1772634754110,5.19610066,2107.5,2105.4,0.36401624]
[1772634754329,0.065536,2108.2,2105.6,1.18731003]
[1772634754330,1.18590199,2108.1,2105.6,1.18731003]
[1772634754514,6.38200265,2108.1,2105.6,1.18731003]
[1772634754716,6.38200265,2108.1,2105.7,5.30125114]
[1772634755005,6.38200265,2108.1,2105.7,4.9372349]
[1772634755208,1.18590199,2108.1,2105.9,0.065536]
[1772634755522,4.74360798,2108.6,2105.6,1.18731003]
[1772634755523,4.74248316,2108.7,2106.2,4.9372349]
[1772634755710,5.19610066,2108.6,2106.2,4.9372349]
[1772634755910,5.19610066,2108.2,2105.6,2.87231003]
[1772634756109,5.19610066,2107.8,2105.6,2.87231003]
[1772634756305,5.19610066,2107.8,2105.6,1.685]
[1772634756521,3.10299074,2108.4,2105.6,1.685]
[1772634756522,4.74334248,2108.3,2106.0,4.9372349]
[1772634756814,4.74334248,2108.3,2106.1,4.9372349]
[1772634757014,4.74334248,2108.3,2106.2,4.9372349]
[1772634757625,1.973,2108.2,2106.2,4.9372349]
[1772634757826,4.74334248,2108.3,2106.2,4.9372349]
[1772634758006,5.19610066,2107.9,2105.6,1.685]
[1772634758204,5.19610066,2107.9,2104.8,4.9372349]
[1772634758205,3.10299074,2106.6,2104.8,1.18770487]
[1772634758411,1.18685909,2106.4,2104.2,4.75235827]
[1772634758619,3.10299074,2106.2,2103.6,4.25001222]
[1772634758844,1.18685909,2106.4,2103.9,4.9372349]
[1772634759145,1.18685909,2106.4,2104.0,0.065536]
[1772634759314,1.18685909,2106.4,2104.0,5.36678714]
[1772634759516,1.976,2106.3,2104.0,4.9372349]
[1772634760036,1.18685909,2106.4,2104.0,4.9372349]
[1772634760236,1.18685909,2106.4,2104.1,5.30125114]
[1772634760437,8.59800768,2107.0,2104.3,5.08671989]
[1772634760637,1.18623962,2107.5,2105.1,0.14948499]
[1772634760837,1.18623962,2107.5,2105.1,1.691]
[1772634761049,1.18623962,2107.5,2105.1,2.05501624]
[1772634761245,1.18623962,2107.5,2105.2,0.44304187]
[1772634761455,1.18623962,2107.5,2105.3,0.14948499]
[1772634761456,3.16523962,2107.5,2105.3,0.14948499]
[1772634761649,3.10299074,2108.0,2105.3,0.14948499]
[1772634761650,3.16478949,2108.3,2105.6,0.065536]
[1772634761954,1.18578949,2108.3,2105.9,5.0027709]
[1772634762326,1.18578949,2108.3,2105.2,4.9372349]
[1772634762327,8.2990914,2108.1,2105.2,4.9372349]
[1772634762632,8.2990914,2107.6,2105.3,1.18747921]
[1772634762831,5.19610066,2107.6,2105.3,1.18747921]
[1772634763051,1.98,2107.6,2105.6,4.9372349]
[1772634763249,1.18595825,2108.0,2105.6,4.9372349]
[1772634763250,1.981,2107.9,2105.6,4.9372349]
[1772634763415,1.981,2107.9,2105.4,0.36401624]
[1772634763416,5.19610066,2108.3,2105.7,5.15225589]
[1772634763619,1.18584231,2108.3,2105.7,5.15225589]
[1772634763826,4.74315799,2108.6,2105.3,1.18747921]
[1772634763827,1.18562079,2108.6,2106.1,5.08671989]
[1772634764030,3.16662079,2108.6,2106.3,0.065536]
[1772634764231,5.19610066,2108.5,2106.2,1.693]
[1772634764430,3.10299074,2108.2,2106.3,1.18691544]
[1772634764630,3.10299074,2108.2,2105.6,4.74914264]
[1772634764631,8.2990914,2107.8,2105.5,4.74941275]
[1772634765021,5.19610066,2107.8,2105.5,4.74941275]
[1772634765428,1.982,2107.7,2105.5,4.74941275]
[1772634765950,2.03546909,2108.0,2105.6,5.0027709]
[1772634766332,5.19610066,2107.9,2105.5,4.74941275]
[1772634766514,9.48516218,2107.8,2105.5,4.74941275]
[1772634766942,9.48516218,2107.8,2105.4,2.88038142]
[1772634766943,5.19610066,2107.7,2105.4,2.88038142]
[1772634767346,4.28906152,2107.8,2105.6,4.9372349]
[1772634767347,1.18607078,2107.8,2105.6,4.9372349]
[1772634767548,1.18607078,2107.8,2105.9,0.065536]
[1772634767725,1.18607078,2107.8,2105.8,4.9372349]
[1772634768249,1.18607078,2107.8,2105.5,0.065536]
[1772634768250,4.83384174,2107.6,2105.5,2.11207283]
[1772634768484,4.83384174,2107.3,2105.3,1.18843987]
[1772634768823,4.83384174,2106.9,2105.3,0.001]
[1772634769035,4.83384174,2106.9,2105.3,1.18847093]
[1772634769230,4.83384174,2106.9,2105.3,0.001]
[1772634769525,1.985,2106.8,2105.3,0.001]
[1772634769847,1.985,2106.7,2105.3,0.001]
[1772634770054,1.985,2106.7,2105.3,1.18845713]
[1772634770440,1.2518319,2107.4,2105.3,1.18845713]
[1772634770441,1.1862959,2107.4,2105.3,1.18845713]
[1772634770645,1.1862959,2107.4,2105.3,6.30671022]
[1772634770944,6.25739683,2108.1,2105.3,6.30671022]
[1772634770945,1.18595825,2108.0,2105.9,5.11825309]
[1772634771147,6.25654862,2108.7,2106.3,5.18378909]
[1772634771148,1.985,2108.5,2106.3,5.18378909]
[1772634771347,4.83384174,2108.4,2106.4,2.69095995]
[1772634771648,4.83384174,2108.4,2106.1,2.50638596]
[1772634771816,4.83384174,2108.4,2106.2,2.68879756]
[1772634771817,1.985,2108.3,2106.2,2.68879756]
[1772634772023,4.83384174,2108.4,2106.3,2.68879756]
[1772634772243,1.985,2108.3,2106.4,2.68879756]
[1772634772450,1.18584574,2108.2,2106.2,1.18697179]
[1772634772752,1.18584574,2108.2,2106.1,1.18699996]
[1772634773049,3.10299074,2107.9,2105.6,1.18731003]
[1772634773450,7.93683248,2107.9,2105.6,1.18731003]
[1772634773674,4.83384174,2107.4,2105.3,0.001]
[1772634773873,7.93683248,2107.1,2105.3,1.18846357]
[1772634774057,7.93683248,2107.1,2105.3,0.001]
[1772634774250,7.93683248,2106.7,2105.3,0.001]
[1772634774446,1.18680275,2106.5,2105.3,0.001]
[1772634774848,6.02064449,2106.5,2104.4,1.18794608]
[1772634775076,7.93683248,2106.3,2104.4,1.18794608]
[1772634775456,1.985,2106.2,2104.4,1.18794608]
[1772634775652,1.985,2106.2,2104.1,1.18815645]
[1772634776346,4.83384174,2106.3,2104.1,1.18815645]
[1772634776548,6.73311262,2106.4,2104.3,5.11825309]
[1772634776779,6.73311262,2106.4,2104.4,2.69276739]
[1772634776964,11.56695436,2106.4,2103.9,4.75262582]
[1772634777166,9.58195436,2106.4,2104.0,2.69480907]
[1772634777366,1.984,2106.3,2104.1,2.69480907]
[1772634777678,1.984,2106.3,2103.9,4.75262582]
[1772634777881,4.83384174,2106.2,2103.8,4.75320123]
[1772634778050,1.984,2106.1,2103.9,2.69592163]
[1772634778250,1.984,2106.0,2103.8,9.87145432]
[1772634778468,1.18719726,2105.8,2104.0,1.18821292]
[1772634779181,1.984,2105.7,2104.0,1.18821292]
[1772634779479,1.984,2105.7,2103.4,1.18855186]
[1772634779480,6.81784174,2105.7,2103.4,1.18855186]
[1772634779780,7.93683248,2105.5,2103.4,1.18855186]
[1772634780188,3.66477053,2105.8,2103.4,6.30680495]
[1772634780480,3.66477053,2105.8,2103.5,7.82316444]
[1772634780481,1.983,2105.7,2103.5,7.82316444]
[1772634780669,1.18731003,2105.6,2103.6,6.30669195]
[1772634780855,1.18731003,2105.6,2103.8,5.11825309]
[1772634781188,4.74924012,2105.7,2103.8,5.11825309]
[1772634781189,1.42423993,2106.5,2104.0,5.11825309]
[1772634781479,1.982,2106.0,2104.2,5.11825309]
[1772634781882,1.982,2105.9,2104.2,5.11825309]
[1772634782257,6.81584174,2105.9,2103.6,7.99969195]
[1772634782577,4.74833808,2106.4,2104.0,5.11825309]
[1772634782578,1.18725364,2105.7,2104.0,5.11825309]
[1772634782746,1.18725364,2105.7,2104.1,2.70220731]
[1772634782950,1.18725364,2105.7,2104.2,2.69948576]
[1772634783164,1.18725364,2105.7,2104.0,5.11825309]
[1772634783368,3.16825364,2105.7,2104.1,2.69847097]
[1772634783559,3.16825364,2105.7,2104.0,5.11825309]
[1772634784170,1.18725364,2105.7,2104.0,5.11825309]
[1772634784406,4.83384174,2105.5,2103.6,0.001]
[1772634784575,1.18742281,2105.4,2103.6,0.001]
[1772634784778,4.83384174,2105.2,2103.6,0.001]
[1772634785288,1.979,2105.1,2103.6,0.001]
[1772634785472,1.978,2105.0,2103.6,0.001]
[1772634785993,1.978,2105.3,2103.6,0.001]
[1772634786373,1.18742281,2105.4,2103.6,5.11925309]
[1772634786591,1.977,2106.1,2104.1,2.50638596]
[1772634786888,1.18680275,2106.5,2104.3,5.11825309]
[1772634786889,3.16380275,2106.5,2104.3,5.11825309]
[1772634787087,11.10063523,2106.5,2104.3,5.11825309]
[1772634787300,11.10063523,2106.5,2104.5,5.11825309]
[1772634787301,1.18680275,2106.5,2104.5,5.11825309]
[1772634787590,1.18680275,2106.5,2104.6,9.4979227]
[1772634787793,1.18680275,2106.5,2104.6,6.80525309]
[1772634788098,1.18680275,2106.5,2104.1,7.62463905]
[1772634788099,3.10299074,2106.4,2104.1,7.62463905]
[1772634788391,1.18680275,2106.5,2104.5,5.11825309]
[1772634788574,4.74665906,2106.8,2104.9,5.11825309]
[1772634788575,1.975,2106.8,2104.9,5.11825309]
[1772634788888,4.28945554,2107.2,2105.1,5.11825309]
[1772634788889,1.975,2107.0,2105.1,5.11825309]
[1772634789193,1.1864648,2107.2,2105.3,5.11825309]
[1772634789194,0.002,2107.1,2105.3,5.11825309]
[1772634789399,0.002,2107.1,2105.8,5.11825309]
[1772634789592,0.002,2107.1,2105.9,7.81125171]
[1772634789783,0.003,2107.5,2106.1,5.11825309]
[1772634790094,1.18924373,2107.5,2106.2,5.19938458]
[1772634790291,1.18924373,2107.5,2105.9,1.685]
[1772634790499,0.003,2107.5,2106.2,5.11825309]
[1772634790664,0.003,2107.5,2106.3,6.30516853]
[1772634790865,0.003,2107.5,2106.2,1.18693825]
[1772634791106,1.972,2107.4,2105.7,1.18725297]
[1772634791279,6.80584174,2107.4,2105.3,1.18747921]
[1772634791480,3.10299074,2107.1,2105.3,1.18747921]
[1772634791791,4.83384174,2107.0,2104.9,1.18770487]
[1772634791997,4.83384174,2107.0,2104.9,6.30595796]
[1772634791998,1.971,2106.9,2104.9,6.30595796]
[1772634792177,1.97,2106.8,2105.0,2.68931434]
[1772634792375,6.80384174,2106.8,2104.9,1.18770487]
[1772634792574,6.02053182,2106.7,2104.6,4.75143113]
[1772634792877,1.18669008,2106.7,2104.8,5.11825309]
[1772634793081,1.18669008,2106.7,2104.9,7.8100292]
[1772634793278,1.18669008,2106.7,2105.0,2.69177611]
[1772634793481,1.18669008,2106.7,2104.6,6.86350396]
[1772634793482,1.18669008,2106.7,2105.1,7.8091117]
[1772634793689,1.18669008,2106.7,2105.1,5.11825309]
[1772634793897,1.18669008,2106.7,2104.6,7.92908642]
[1772634793898,1.18669008,2106.7,2104.6,6.86350396]
[1772634794110,1.18669008,2106.7,2104.7,2.69191931]
[1772634794277,1.18669008,2106.7,2104.7,5.11825309]
[1772634794475,3.15469008,2106.7,2104.9,5.11825309]
[1772634794784,4.74585512,2107.2,2105.1,6.30584512]
[1772634795106,4.74585512,2107.2,2105.2,4.3743952]
[1772634795405,6.71185512,2107.2,2105.3,2.6943952]
[1772634795583,6.71185512,2107.2,2105.2,1.68]
[1772634796102,4.74585512,2107.2,2105.3,2.6926894]
[1772634796301,4.74585512,2107.2,2105.2,1.68]
[1772634796302,0.003,2106.2,2105.2,1.68]
[1772634796475,0.003,2106.2,2105.3,2.69383232]
[1772634796677,0.003,2106.2,2105.4,2.69324663]
[1772634796888,0.003,2106.2,2105.3,1.18747921]
[1772634796889,0.003,2106.2,2105.1,2.86556038]
[1772634797209,0.003,2106.2,2104.8,6.30601439]
[1772634797396,0.003,2106.2,2104.9,2.69563961]
[1772634797582,0.003,2106.2,2104.8,6.30601439]
[1772634797789,0.003,2106.2,2104.5,4.7515941]
[1772634798020,0.003,2106.2,2104.3,5.11825309]
[1772634798190,0.003,2106.2,2104.3,6.30627098]
[1772634798550,5.02836598,2106.2,2104.3,1.18801789]
[1772634798685,4.74833808,2106.1,2104.3,4.75612461]
[1772634798891,6.70933808,2106.1,2104.4,2.69895813]
[1772634799197,4.74833808,2106.1,2104.3,4.75612461]
[1772634799397,4.74833808,2106.1,2104.4,2.69865993]
[1772634799707,4.74833808,2106.1,2104.5,2.69865993]
[1772634799876,4.74833808,2106.1,2104.2,6.42933472]
[1772634800215,2.21365712,2105.8,2104.0,0.001]
[1772634800419,5.02536598,2106.0,2104.1,1.18814131]
[1772634800616,1.959,2105.8,2104.2,2.70016449]
[1772634800903,1.959,2105.8,2104.0,4.75362582]
[1772634800904,1.18725364,2105.7,2104.0,0.001]
[1772634801105,1.18725364,2105.7,2104.1,2.70079905]
[1772634801312,1.18725364,2105.7,2104.0,0.001]
[1772634801313,8.42627674,2105.7,2104.0,0.001]
[1772634801516,5.02536598,2105.2,2104.0,0.001]
[1772634801680,2.21365712,2104.9,2103.6,0.001]
[1772634801878,5.02536598,2104.7,2103.6,0.001]
[1772634802078,1.957,2104.6,2103.6,0.001]
[1772634802298,2.21365712,2104.4,2103.6,0.001]
[1772634802622,2.21365712,2104.0,2102.5,0.001]